bitfinex/quotes_BTCUSD_20230405
["timestamp","ask_amount","ask_price","bid_price","bid_amount"]
[1680652801266,0.002,28154.0,28153.0,1.17369117]
[1680652801485,0.002,28154.0,28153.0,1.16243084]
[1680652804701,0.102,28154.0,28153.0,1.16243084]
[1680652805641,0.102,28154.0,28153.0,0.90725454]
[1680652806271,0.102,28154.0,28153.0,0.56367541]
[1680652807408,0.102,28154.0,28153.0,0.55781541]
[1680652807803,0.102,28154.0,28153.0,0.55535541]
[1680652808752,0.102,28154.0,28153.0,0.55517541]
[1680652808914,0.102,28154.0,28153.0,0.89875454]
[1680652809552,0.102,28154.0,28153.0,0.91205619]
[1680652809789,0.102,28154.0,28153.0,0.82629454]
[1680652810000,0.102,28154.0,28153.0,0.82365454]
[1680652810204,0.102,28154.0,28153.0,0.8332829]
[1680652810665,0.102,28154.0,28153.0,0.82365454]
[1680652810867,0.102,28154.0,28153.0,0.83530588]
[1680652811035,0.102,28154.0,28153.0,0.82365454]
[1680652811243,0.102,28154.0,28153.0,0.83335013]
[1680652811442,0.102,28154.0,28153.0,0.8331974]
[1680652811646,0.102,28154.0,28153.0,1.08147084]
[1680652811969,0.102,28154.0,28153.0,1.09655841]
[1680652812747,0.102,28154.0,28153.0,1.07555841]
[1680652813150,0.102,28154.0,28153.0,1.15379841]
[1680652813361,0.102,28154.0,28153.0,1.15965841]
[1680652815370,0.046216,28154.0,28153.0,1.27868211]
[1680652815572,0.046216,28154.0,28153.0,1.65799645]
[1680652815811,0.046216,28154.0,28153.0,1.2812127]
[1680652816210,0.046216,28154.0,28153.0,0.9070127]
[1680652816423,0.046216,28154.0,28153.0,1.2812127]
[1680652816628,0.046216,28154.0,28153.0,0.9070127]
[1680652817073,0.046216,28154.0,28153.0,0.91713246]
[1680652817292,0.046216,28154.0,28153.0,1.29133246]
[1680652817710,0.046216,28154.0,28153.0,1.2812127]
[1680652818623,0.046216,28154.0,28153.0,0.90695208]
[1680652819047,0.046216,28154.0,28153.0,0.8985127]
[1680652819262,0.046216,28154.0,28153.0,1.29840435]
[1680652819703,0.046216,28154.0,28153.0,1.67260435]
[1680652819934,0.046216,28154.0,28153.0,1.68110435]
[1680652822626,0.046216,28154.0,28153.0,1.68099442]
[1680652823866,0.046216,28154.0,28153.0,1.69091351]
[1680652824314,0.046216,28154.0,28153.0,1.68088625]
[1680652825066,0.046216,28154.0,28153.0,1.68952081]
[1680652826167,0.046216,28154.0,28153.0,1.68088625]
[1680652826386,0.046216,28154.0,28153.0,1.6915872]
[1680652826945,0.00021,28157.0,28155.0,1.1]
[1680652827163,0.00021,28157.0,28156.0,0.89669356]
[1680652827821,0.07561,28159.0,28156.0,0.79954189]
[1680652828044,0.07561,28159.0,28158.0,0.17001021]
[1680652828263,0.07561,28159.0,28158.0,0.59481377]
[1680652828944,0.07761,28159.0,28158.0,0.86801377]
[1680652829133,0.07561,28159.0,28158.0,0.86801377]
[1680652829348,0.07761,28159.0,28158.0,0.88201377]
[1680652829811,0.00221,28159.0,28158.0,0.88201377]
[1680652831628,0.00221,28159.0,28158.0,0.65484098]
[1680652831858,0.41056383,28159.0,28158.0,0.65484098]
[1680652832097,0.41056383,28159.0,28158.0,0.65484056]
[1680652832303,0.48626383,28159.0,28158.0,0.52730321]
[1680652833665,0.07791,28159.0,28158.0,0.84941987]
[1680652833925,0.07791,28159.0,28158.0,1.03412022]
[1680652834376,0.07791,28159.0,28158.0,0.93412022]
[1680652835308,0.0777,28159.0,28158.0,0.93401236]
[1680652835755,0.07764,28159.0,28158.0,0.93401236]
[1680652836227,0.12764,28159.0,28158.0,0.93401236]
[1680652836519,0.12764,28159.0,28158.0,0.7216196]
[1680652836979,0.12764,28159.0,28158.0,0.93429524]
[1680652838527,0.12764,28159.0,28158.0,0.7216196]
[1680652838747,0.12764,28159.0,28158.0,0.7214996]
[1680652838964,0.12764,28159.0,28158.0,0.93416851]
[1680652839190,0.12764,28159.0,28158.0,0.93428851]
[1680652840312,0.12764,28159.0,28158.0,0.93428465]
[1680652840586,0.12764,28159.0,28158.0,0.7216196]
[1680652843575,0.12764,28159.0,28158.0,0.93428096]
[1680652843802,0.12764,28159.0,28158.0,0.7216196]
[1680652844507,0.12764,28159.0,28158.0,0.52744003]
[1680652844508,0.65593742,28159.0,28158.0,0.52744003]
[1680652844734,0.65593742,28159.0,28158.0,0.50545789]
[1680652845873,0.20314,28159.0,28158.0,0.50545789]
[1680652846118,0.20314,28159.0,28158.0,0.56922257]
[1680652846339,0.20314,28159.0,28158.0,0.52669438]
[1680652846561,0.20314,28159.0,28158.0,0.52675438]
[1680652847247,0.20314,28159.0,28158.0,0.73941795]
[1680652847473,0.20314,28159.0,28158.0,0.56928257]
[1680652849887,0.12764,28159.0,28158.0,0.56928257]
[1680652850104,0.12764,28159.0,28158.0,0.56922257]
[1680652852269,0.12764,28159.0,28158.0,0.7393839]
[1680652852503,0.12764,28159.0,28158.0,0.56922257]
[1680652853121,0.57158159,28159.0,28158.0,0.56922257]
[1680652853351,0.57158159,28159.0,28158.0,0.71816201]
[1680652853567,0.57158159,28159.0,28158.0,0.74031701]
[1680652855341,0.57158159,28159.0,28158.0,0.57014157]
[1680652855514,0.57158159,28159.0,28158.0,0.54798657]
[1680652857314,0.57158159,28159.0,28158.0,0.57037657]
[1680652857952,0.57158159,28159.0,28158.0,0.57076057]
[1680652858163,0.57151177,28159.0,28158.0,0.47360481]
[1680652858597,0.64671177,28159.0,28158.0,0.47360481]
[1680652858825,0.64671177,28159.0,28158.0,0.47338181]
[1680652859042,0.64692177,28159.0,28158.0,0.47332181]
[1680652859264,0.64692177,28159.0,28158.0,0.45744381]
[1680652859486,0.62438697,28159.0,28158.0,0.2872]
[1680652859945,0.77598697,28159.0,28158.0,0.2872]
[1680652860177,0.81219697,28159.0,28158.0,0.2872]
[1680652860390,0.77598697,28159.0,28158.0,0.2872]
[1680652861179,0.77411679,28159.0,28158.0,0.2732]
[1680652861384,0.77411679,28159.0,28158.0,0.2862]
[1680652861581,0.77611679,28159.0,28158.0,0.302181]
[1680652861815,0.77411679,28159.0,28158.0,0.289181]
[1680652862853,0.77711679,28159.0,28158.0,0.289181]
[1680652863021,0.77411679,28159.0,28158.0,0.289181]
[1680652863231,0.77511679,28159.0,28158.0,0.300181]
[1680652863827,0.77411679,28159.0,28158.0,0.289181]
[1680652864040,0.77511679,28159.0,28158.0,0.300181]
[1680652864254,0.77411679,28159.0,28158.0,0.289181]
[1680652864470,0.77511679,28159.0,28158.0,0.300181]
[1680652864682,0.77411679,28159.0,28158.0,0.289181]
[1680652865747,0.77511679,28159.0,28158.0,0.300181]
[1680652865952,0.77411679,28159.0,28158.0,0.289181]
[1680652866161,0.77411679,28159.0,28158.0,0.293181]
[1680652866372,0.77411679,28159.0,28158.0,0.289181]
[1680652866575,0.77411679,28159.0,28158.0,0.11418679]
[1680652866784,0.85131847,28159.0,28158.0,0.13016779]
[1680652866996,0.77411679,28159.0,28158.0,0.13016779]
[1680652867523,0.77411679,28159.0,28158.0,0.12616779]
[1680652867738,0.77411679,28159.0,28158.0,0.13006028]
[1680652868392,0.79117599,28159.0,28158.0,0.11407928]
[1680652868615,0.4671566,28159.0,28158.0,0.11007928]
[1680652868840,0.4671566,28159.0,28155.0,0.12768504]
[1680652868841,0.0522,28158.0,28155.0,0.00018]
[1680652869066,0.39140656,28157.0,28155.0,6e-05]
[1680652869292,0.69156,28156.0,28152.0,0.02096]
[1680652869481,0.45817497,28155.0,28152.0,0.02102]
[1680652869727,0.1507,28153.0,28152.0,0.036884]
[1680652870376,0.1507,28153.0,28152.0,0.16456904]
[1680652870590,0.1507,28153.0,28152.0,0.037884]
[1680652871722,0.1517,28153.0,28152.0,0.048884]
[1680652872175,0.1517,28153.0,28152.0,0.04855145]
[1680652873438,0.0764,28153.0,28152.0,0.03156745]
[1680652873691,0.0764,28153.0,28152.0,0.03256745]
[1680652876520,0.1264,28153.0,28152.0,0.03256745]
[1680652877653,0.1264,28153.0,28152.0,0.02156745]
[1680652877654,0.1254,28153.0,28152.0,0.02156745]
[1680652877862,0.1254,28153.0,28152.0,0.02556745]
[1680652879407,0.1254,28153.0,28152.0,0.02156745]
[1680652879408,0.1876786,28153.0,28152.0,0.02156745]
[1680652879629,0.1876786,28153.0,28152.0,0.02456745]
[1680652879857,0.1876786,28153.0,28152.0,0.02556745]
[1680652880122,0.1254,28153.0,28152.0,0.02556745]
[1680652880776,0.47822808,28153.0,28152.0,0.02556745]
[1680652881205,0.47822808,28153.0,28152.0,0.04155145]
[1680652881444,0.47822808,28153.0,28152.0,0.02556745]
[1680652882316,0.47822808,28153.0,28152.0,0.02156745]
[1680652882527,0.47822808,28153.0,28152.0,0.02556745]
[1680652883614,0.53357189,28153.0,28152.0,0.02556745]
[1680652884743,0.53357189,28153.0,28152.0,0.04155145]
[1680652885174,0.47822808,28153.0,28152.0,0.04155145]
[1680652885605,0.47822808,28153.0,28152.0,0.02556745]
[1680652885821,0.47822808,28153.0,28152.0,0.04155145]
[1680652886948,0.47822808,28153.0,28152.0,0.02556745]
[1680652888455,0.59084408,28153.0,28152.0,0.02556745]
[1680652888672,0.66505949,28153.0,28152.0,0.02556745]
[1680652888888,1.39397005,28153.0,28152.0,0.02556745]
[1680652889107,1.37527537,28153.0,28152.0,0.02556745]
[1680652889323,1.37506537,28153.0,28152.0,0.02556745]
[1680652889755,1.37506537,28153.0,28152.0,0.02156745]
[1680652889756,1.45026537,28153.0,28152.0,0.02156745]
[1680652889969,1.45026537,28153.0,28152.0,0.02556745]
[1680652889970,1.07627537,28153.0,28152.0,0.02556745]
[1680652890398,0.6473494,28153.0,28152.0,0.02156745]
[1680652891097,0.6633494,28153.0,28152.0,0.02256745]
[1680652893114,0.6259334,28153.0,28152.0,0.02256745]
[1680652893601,0.6639234,28153.0,28152.0,0.02256745]
[1680652894264,0.6259334,28153.0,28152.0,0.02256745]
[1680652894493,0.6625864,28153.0,28152.0,0.02256745]
[1680652894948,0.6623764,28153.0,28152.0,0.02204045]
[1680652895173,0.6623764,28153.0,28152.0,0.0218728]
[1680652898757,0.2164,28153.0,28152.0,0.0208728]
[1680652898976,0.066,28153.0,28152.0,0.0208728]
[1680652899871,0.1257,28153.0,28152.0,0.0198728]
[1680652900405,0.1257,28153.0,28152.0,0.0238728]
[1680652900625,0.1257,28153.0,28152.0,0.0198728]
[1680652900826,0.1287,28153.0,28152.0,0.0198728]
[1680652902302,0.56434164,28153.0,28152.0,0.0198728]
[1680652903189,0.60301664,28153.0,28152.0,0.0198728]
[1680652904010,0.7463393,28153.0,28152.0,0.0198728]
[1680652906615,0.60281664,28153.0,28152.0,0.0198728]
[1680652908467,0.60281664,28153.0,28152.0,0.01976488]
[1680652912542,0.60281664,28153.0,28152.0,0.01965696]
[1680652914425,0.60302664,28153.0,28152.0,0.01965696]
[1680652914799,0.60296664,28153.0,28152.0,0.01965696]
[1680652915014,0.60281664,28153.0,28152.0,0.01965696]
[1680652916083,1.43694986,28153.0,28152.0,0.01965696]
[1680652916339,1.3317272,28153.0,28152.0,0.01965696]
[1680652916520,0.9575272,28153.0,28152.0,0.01965696]
[1680652916764,0.9577372,28153.0,28152.0,0.01955039]
[1680652916978,0.12871,28153.0,28152.0,0.01955039]
[1680652917188,0.1285,28153.0,28152.0,0.02898629]
[1680652918073,0.1285,28153.0,28152.0,0.01955039]
[1680652920742,0.57692447,28153.0,28150.0,0.10305599]
[1680652922069,0.57692447,28153.0,28150.0,0.2732998]
[1680652922289,0.41600158,28152.0,28150.0,0.2732998]
[1680652922517,0.41621158,28152.0,28150.0,0.28419188]
[1680652922740,0.41621158,28152.0,28150.0,0.20706437]
[1680652922962,0.41621158,28152.0,28150.0,0.19722881]
[1680652923401,0.41621158,28152.0,28150.0,0.18622881]
[1680652923844,0.41721158,28152.0,28150.0,0.19722881]
[1680652924294,0.41721158,28152.0,28150.0,0.026985]
[1680652925500,0.36251429,28151.0,28150.0,0.011]
[1680652925686,0.36272429,28151.0,28150.0,0.011]
[1680652926556,0.36272429,28151.0,28150.0,0.17024381]
[1680652926769,0.36372429,28151.0,28150.0,0.18124381]
[1680652928204,0.36372429,28151.0,28150.0,0.011]
[1680652928615,0.36372429,28151.0,28150.0,0.18124381]
[1680652929650,0.43942429,28151.0,28150.0,0.011]
[1680652929860,0.36372429,28151.0,28150.0,0.011]
[1680652930069,0.41263672,28151.0,28150.0,0.011]
[1680652930285,0.36372429,28151.0,28150.0,0.011]
[1680652930899,0.36372429,28151.0,28150.0,0.0108936]
[1680652931520,0.36372429,28151.0,28150.0,0.13863651]
[1680652932511,0.36372429,28151.0,28150.0,0.30888032]
[1680652932737,0.36372429,28151.0,28150.0,0.18113741]
[1680652934678,0.36372429,28151.0,28150.0,0.18097692]
[1680652935037,0.41263672,28151.0,28150.0,0.18097692]
[1680652935275,0.36372429,28151.0,28150.0,0.18097692]
[1680652937021,0.36372429,28151.0,28150.0,0.3087539]
[1680652937458,0.36372429,28151.0,28150.0,0.18097692]
[1680652941877,0.00121,28151.0,28150.0,0.18097692]
[1680652942087,0.001,28151.0,28150.0,0.19146025]
[1680652942320,0.001,28151.0,28150.0,0.20744525]
[1680652945610,0.001,28151.0,28150.0,0.42010882]
[1680652945820,0.001,28151.0,28150.0,0.44299782]
[1680652946032,0.001,28151.0,28150.0,0.44311822]
[1680652946469,0.001,28151.0,28150.0,0.20756565]
[1680652946683,0.001,28151.0,28150.0,0.42022922]
[1680652949077,0.001,28151.0,28150.0,0.19158065]
[1680652949524,0.037223,28151.0,28150.0,0.19158065]
[1680652949736,0.035927,28151.0,28150.0,0.19158065]
[1680652949959,0.035927,28151.0,28150.0,0.18109732]
[1680652950176,0.47609029,28151.0,28150.0,0.30887879]
[1680652950448,0.47630029,28151.0,28150.0,0.13851458]
[1680652951126,0.07902278,28151.0,28150.0,0.30887879]
[1680652951337,0.07881278,28151.0,28150.0,0.18109732]
[1680652951762,0.035927,28151.0,28150.0,0.30876506]
[1680652951978,0.001,28151.0,28150.0,0.30876506]
[1680652953438,0.05466851,28151.0,28150.0,0.30876506]
[1680652954095,0.01751351,28151.0,28150.0,0.20569848]
[1680652954738,0.01751351,28151.0,28150.0,0.33347197]
[1680652954957,0.01751351,28151.0,28150.0,0.16310918]
[1680652955171,0.01751351,28151.0,28150.0,0.16300769]
[1680652955378,0.01751351,28151.0,28150.0,0.20559699]
[1680652956476,0.01751351,28151.0,28150.0,0.2054782]
[1680652961532,0.01751351,28151.0,28150.0,0.33325396]
[1680652962424,0.01751351,28151.0,28150.0,0.33325296]
[1680652963356,0.01751351,28151.0,28150.0,0.32453061]
[1680652963591,0.43740387,28151.0,28150.0,0.1381814]
[1680652963823,0.43761387,28151.0,28150.0,0.1381814]
[1680652966454,0.42110036,28151.0,28150.0,0.1381814]
[1680652968037,0.36811395,28151.0,28150.0,0.1381814]
[1680652968288,0.037639,28151.0,28150.0,0.1381814]
[1680652968510,0.001,28151.0,28150.0,0.14662293]
[1680652968731,0.001,28151.0,28150.0,0.16260793]
[1680652970176,0.001,28151.0,28150.0,0.16250165]
[1680652979401,0.001,28151.0,28150.0,0.52289273]
[1680652979644,0.001,28151.0,28150.0,1.80382192]
[1680652979895,0.001,28151.0,28150.0,1.89069753]
[1680652980124,0.001,28151.0,28150.0,1.89087753]
[1680652980354,0.001,28151.0,28150.0,1.87958192]
[1680652980567,0.05,28153.0,28150.0,1.88053493]
[1680652980791,0.05,28153.0,28152.0,0.38323058]
[1680652981009,0.05,28153.0,28152.0,0.55290458]
[1680652981211,0.05,28153.0,28152.0,0.75290458]
[1680652981819,0.051,28153.0,28152.0,0.77590458]
[1680652982024,0.051,28153.0,28152.0,0.60557988]
[1680652982468,0.051,28153.0,28152.0,0.61693257]
[1680652982652,0.05020383,28153.0,28152.0,0.61675257]
[1680652982898,0.04966383,28153.0,28152.0,0.61675257]
[1680652983473,0.06446841,28153.0,28152.0,0.61675257]
[1680652984550,0.06446841,28153.0,28152.0,0.57409512]
[1680652985442,0.04966383,28153.0,28152.0,0.57409512]
[1680652986753,0.04966383,28153.0,28152.0,0.70174661]
[1680652987525,0.04966383,28153.0,28152.0,0.57409512]
[1680652987740,0.04866383,28153.0,28152.0,0.67874646]
[1680652987954,0.04966383,28153.0,28152.0,0.57409512]
[1680652988165,0.04966383,28153.0,28152.0,0.6802063]
[1680652988391,0.04966383,28153.0,28152.0,0.20995787]
[1680652989354,0.06459462,28153.0,28152.0,0.20995787]
[1680652991108,0.06442772,28153.0,28152.0,0.20995787]
[1680652992610,0.01593079,28153.0,28152.0,0.20995787]
[1680652993680,0.01593079,28153.0,28152.0,0.23144087]
[1680652994366,0.01593079,28153.0,28152.0,0.22008818]
[1680652994610,0.01593079,28153.0,28152.0,0.26268443]
[1680652994822,0.01593079,28153.0,28152.0,0.36268443]
[1680652995033,0.01593079,28153.0,28152.0,0.37204591]
[1680652995309,0.001,28153.0,28152.0,0.37204591]
[1680652995959,0.001,28153.0,28152.0,0.27204591]
[1680652996176,0.001,28153.0,28152.0,0.36268443]
[1680652996394,0.001,28153.0,28152.0,0.27281573]
[1680652996615,0.001,28153.0,28152.0,0.71739499]
[1680652996828,0.001,28153.0,28152.0,1.42459984]
[1680652997049,0.001,28153.0,28152.0,1.67962239]
[1680652997271,0.001,28153.0,28152.0,1.67980239]
[1680652997708,0.32597276,28161.0,28156.0,0.1]
[1680652997931,0.32597276,28161.0,28157.0,0.63988591]
[1680652998154,0.32597276,28161.0,28158.0,0.021891]
[1680652998377,0.32597276,28161.0,28159.0,0.047941]
[1680652999272,0.45456387,28160.0,28159.0,0.047941]
[1680652999489,0.45477387,28160.0,28159.0,0.047941]
[1680653000344,0.45477387,28160.0,28159.0,0.061941]
[1680653001229,0.45443495,28160.0,28159.0,0.061941]
[1680653001450,0.45443495,28160.0,28159.0,0.02998]
[1680653003687,0.45443495,28160.0,28159.0,0.014]
[1680653003901,0.45443495,28160.0,28159.0,0.02998]
[1680653004978,0.45398583,28160.0,28159.0,0.014]
[1680653005190,0.45398583,28160.0,28159.0,0.02998]
[1680653005621,0.45419583,28160.0,28157.0,0.1]
[1680653005840,0.45419583,28160.0,28159.0,0.01598]
[1680653006056,0.45237293,28160.0,28159.0,0.01598]
[1680653006282,0.12852829,28160.0,28156.0,0.19464395]
[1680653006509,0.0757,28158.0,28155.0,0.00018]
[1680653006734,0.0757,28156.0,28153.0,0.015983]
[1680653006955,0.0757,28155.0,28152.0,0.00374544]
[1680653007187,0.0757,28155.0,28152.0,0.01972944]
[1680653007402,0.0757,28155.0,28152.0,0.01682338]
[1680653008311,0.0757,28155.0,28152.0,0.11682338]
[1680653008522,0.0757,28153.0,28149.0,0.13677357]
[1680653008746,0.0757,28152.0,28149.0,0.015986]
[1680653009643,0.0757,28152.0,28149.0,0.137986]
[1680653009863,0.0757,28152.0,28149.0,0.115986]
[1680653010082,0.0767,28152.0,28149.0,0.135986]
[1680653011172,0.07558711,28152.0,28149.0,0.016106]
[1680653011384,0.07658711,28152.0,28149.0,0.035986]
[1680653013828,0.51889137,28152.0,28148.0,0.20202326]
[1680653014049,0.51889137,28152.0,28149.0,0.115986]
[1680653014765,0.57078051,28152.0,28149.0,0.115986]
[1680653016149,0.51889137,28152.0,28149.0,0.115986]
[1680653019021,0.51889137,28152.0,28149.0,0.015986]
[1680653019661,0.51889137,28152.0,28150.0,0.023125]
[1680653019662,0.00121,28152.0,28150.0,0.023125]
[1680653019904,0.001,28152.0,28151.0,0.047955]
[1680653020120,0.00121,28152.0,28151.0,0.047955]
[1680653020546,0.00021,28152.0,28151.0,0.047955]
[1680653021033,0.05121,28152.0,28151.0,0.047955]
[1680653021271,0.05021,28152.0,28151.0,0.051955]
[1680653021467,0.051,28152.0,28151.0,0.051955]
[1680653029594,0.050887,28152.0,28151.0,0.051955]
[1680653030958,0.37580448,28152.0,28151.0,0.051955]
[1680653031405,0.37564156,28152.0,28151.0,0.051955]
[1680653037345,0.37552835,28152.0,28151.0,0.051955]
[1680653038861,0.37564835,28152.0,28151.0,0.051955]
[1680653039047,0.37552835,28152.0,28151.0,0.051955]
[1680653039705,0.37552835,28152.0,28151.0,0.03597]
[1680653039915,0.37552835,28152.0,28151.0,0.019985]
[1680653040339,0.37552835,28152.0,28151.0,0.041314]
[1680653040774,0.37552835,28152.0,28151.0,0.04118705]
[1680653040990,0.37552835,28152.0,28151.0,0.01985805]
[1680653041182,0.37552835,28152.0,28151.0,0.04254605]
[1680653041475,0.3754197,28152.0,28151.0,0.04254605]
[1680653041697,0.3754197,28152.0,28151.0,0.01985805]
[1680653042759,0.37550885,28152.0,28151.0,0.01985805]
[1680653042977,0.37556885,28152.0,28151.0,0.01985805]
[1680653043393,0.3754197,28152.0,28151.0,0.01985805]
[1680653043603,0.3754197,28152.0,28151.0,0.00387305]
[1680653044717,0.63661964,28152.0,28151.0,0.00387305]
[1680653046297,0.63561964,28152.0,28147.0,0.14357909]
[1680653046523,0.0754,28150.0,28147.0,0.14345909]
[1680653047026,0.07546,28150.0,28147.0,6e-05]
[1680653047251,0.0754,28150.0,28147.0,0.119987]
[1680653047456,0.07554915,28150.0,28147.0,0.115987]
[1680653047659,0.07754915,28150.0,28147.0,0.119987]
[1680653048093,0.07554915,28150.0,28147.0,0.115987]
[1680653048976,0.07754915,28150.0,28147.0,0.119987]
[1680653049211,0.07554915,28150.0,28148.0,0.022089]
[1680653049423,0.07554915,28150.0,28149.0,0.015986]
[1680653049424,0.07754915,28150.0,28149.0,0.015986]
[1680653049878,0.00214915,28150.0,28149.0,0.015986]
[1680653050282,0.00014915,28150.0,28149.0,0.015986]
[1680653050502,0.00114915,28150.0,28149.0,0.019986]
[1680653051392,0.001,28150.0,28149.0,0.019986]
[1680653051820,0.45373309,28150.0,28149.0,0.019986]
[1680653052257,0.001,28150.0,28149.0,0.019986]
[1680653054599,0.00088672,28150.0,28149.0,0.019986]
[1680653058313,0.00088672,28150.0,28149.0,0.14765179]
[1680653058558,0.00088672,28150.0,28149.0,0.019986]
[1680653058791,0.00088672,28150.0,28149.0,0.24653015]
[1680653060908,0.45053612,28151.0,28149.0,0.14271015]
[1680653061125,0.001,28150.0,28149.0,0.14665015]
[1680653061343,0.001,28150.0,28149.0,0.14659015]
[1680653061344,0.00083385,28150.0,28149.0,0.14659015]
[1680653061580,0.00083385,28150.0,28149.0,0.14653015]
[1680653065140,0.00083385,28150.0,28149.0,0.16710315]
[1680653065354,0.00083385,28150.0,28149.0,0.16844015]
[1680653065614,0.00083385,28150.0,28149.0,0.14653015]
[1680653070367,0.00083385,28150.0,28149.0,0.01886436]
[1680653070986,0.00083385,28150.0,28149.0,0.16809315]
[1680653071488,0.00072668,28150.0,28149.0,0.16809315]
[1680653072226,0.00072668,28150.0,28149.0,0.01886436]
[1680653072455,0.00072668,28150.0,28149.0,0.14653015]
[1680653072891,0.00072668,28150.0,28149.0,0.004]
[1680653073593,0.42824789,28150.0,28149.0,0.004]
[1680653074699,0.47938869,28150.0,28149.0,0.004]
[1680653075132,0.42824789,28150.0,28149.0,0.004]
[1680653075816,0.42813499,28150.0,28149.0,0.004]
[1680653080743,0.42813499,28150.0,28148.0,0.14383179]
[1680653080985,0.42752121,28150.0,28148.0,0.31399275]
[1680653081190,0.42852121,28150.0,28149.0,0.004]
[1680653081403,0.42834447,28150.0,28149.0,0.004]
[1680653082061,0.46370347,28150.0,28148.0,0.12778579]
[1680653082287,0.42834447,28150.0,28148.0,0.13178579]
[1680653082516,0.42734447,28150.0,28148.0,0.12778579]
[1680653082735,0.42734447,28150.0,28149.0,0.004]
[1680653082736,0.42834447,28150.0,28149.0,0.004]
[1680653082944,0.42834447,28150.0,28148.0,0.29806675]
[1680653082945,0.42734447,28150.0,28148.0,0.29806675]
[1680653083159,0.42834447,28150.0,28148.0,0.30206675]
[1680653083341,0.42734447,28150.0,28148.0,0.29806675]
[1680653083766,0.42834447,28150.0,28149.0,0.004]
[1680653083991,0.42834447,28150.0,28148.0,0.29806675]
[1680653083992,0.42734447,28150.0,28148.0,0.29806675]
[1680653084794,0.42834447,28150.0,28149.0,0.12766579]
[1680653085370,0.001,28150.0,28149.0,0.14365179]
[1680653085587,0.50568825,28151.0,28149.0,0.14365179]
[1680653085800,0.001,28150.0,28149.0,0.14765179]
[1680653086903,0.35997673,28150.0,28149.0,0.14765179]
[1680653087113,0.35986239,28150.0,28149.0,0.14765179]
[1680653090621,0.35986239,28150.0,28149.0,0.13166579]
[1680653091464,0.35975335,28150.0,28149.0,0.13166579]
[1680653092141,0.39683335,28150.0,28149.0,0.13166579]
[1680653092350,0.39822135,28150.0,28149.0,0.13166579]
[1680653093404,0.35975335,28150.0,28149.0,0.13166579]
[1680653093899,0.3598563,28150.0,28149.0,0.13166579]
[1680653094113,0.35975335,28150.0,28149.0,0.13166579]
[1680653096334,0.4158382,28150.0,28149.0,0.13166579]
[1680653096537,0.4517902,28150.0,28149.0,0.13166579]
[1680653096781,0.4507192,28150.0,28149.0,0.13166579]
[1680653096966,0.45091215,28150.0,28149.0,0.13166579]
[1680653098258,0.4507192,28150.0,28149.0,0.13166579]
[1680653099073,0.4158382,28150.0,28149.0,0.13166579]
[1680653099703,0.35958278,28150.0,28149.0,0.13166579]
[1680653099944,0.47364478,28150.0,28149.0,0.13166579]
[1680653100156,0.43528278,28150.0,28149.0,0.13166579]
[1680653101551,0.43516735,28150.0,28149.0,0.13166579]
[1680653102210,0.47159435,28150.0,28149.0,0.13166579]
[1680653102403,0.43516735,28150.0,28149.0,0.13166579]
[1680653102721,0.43516735,28150.0,28149.0,0.004]
[1680653103376,0.78987791,28150.0,28149.0,0.004]
[1680653103599,0.82641791,28150.0,28149.0,0.004]
[1680653104725,0.78987791,28150.0,28149.0,0.004]
[1680653104946,0.82521291,28150.0,28149.0,0.004]
[1680653105165,0.78987791,28150.0,28149.0,0.004]
[1680653106048,0.88393506,28150.0,28149.0,0.004]
[1680653106719,0.88412801,28150.0,28149.0,0.004]
[1680653107166,1.25832801,28150.0,28149.0,0.004]
[1680653107617,1.25783739,28150.0,28146.0,0.12784579]
[1680653107840,0.0754,28147.0,28146.0,0.12766579]
[1680653108056,0.0754,28147.0,28146.0,0.12778579]
[1680653108496,0.0754,28147.0,28146.0,0.12784579]
[1680653108718,0.0774,28147.0,28146.0,0.12784579]
[1680653109668,0.42458935,28147.0,28146.0,0.12784579]
[1680653110730,0.51008864,28147.0,28146.0,0.12784579]
[1680653111401,0.51028159,28147.0,28146.0,0.12766579]
[1680653111630,0.51011137,28147.0,28146.0,0.12766579]
[1680653112100,0.00219295,28147.0,28146.0,0.14365379]
[1680653112331,0.002,28147.0,28146.0,0.31387475]
[1680653112554,0.002,28147.0,28146.0,0.31399475]
[1680653113462,0.51639852,28149.0,28146.0,0.31399475]
[1680653113679,0.002,28147.0,28146.0,0.31799475]
[1680653113903,0.51639852,28149.0,28146.0,0.14377379]
[1680653114124,0.002,28147.0,28146.0,0.14765379]
[1680653114336,0.44089852,28149.0,28146.0,0.14365379]
[1680653114553,0.44289852,28149.0,28146.0,0.31787475]
[1680653114749,0.44289852,28149.0,28146.0,0.31799475]
[1680653114999,0.44089852,28149.0,28146.0,0.31399475]
[1680653115213,0.001,28147.0,28146.0,0.31799475]
[1680653115429,0.00019295,28149.0,28146.0,0.31399475]
[1680653115670,0.41914433,28150.0,28147.0,0.12755638]
[1680653115900,0.77404784,28150.0,28148.0,0.015986]
[1680653116127,0.77404784,28150.0,28147.0,0.14354238]
[1680653116325,0.36442788,28149.0,28147.0,0.14354238]
[1680653116531,0.36362083,28149.0,28147.0,0.14354238]
[1680653117011,0.36362083,28149.0,28147.0,0.14754238]
[1680653117222,0.36462083,28149.0,28147.0,0.019986]
[1680653117701,0.36431321,28149.0,28147.0,0.019986]
[1680653119669,0.44429904,28148.0,28147.0,0.004]
[1680653119893,0.51999904,28148.0,28147.0,0.004]
[1680653121019,0.51999904,28148.0,28146.0,0.12773638]
[1680653121579,0.51983095,28148.0,28146.0,0.12767638]
[1680653122011,0.51983095,28148.0,28146.0,0.14366438]
[1680653122450,0.51983095,28148.0,28146.0,0.12767638]
[1680653122659,0.52183095,28148.0,28146.0,0.12767638]
[1680653124563,0.52183095,28148.0,28146.0,0.14366338]
[1680653124778,0.0777,28148.0,28146.0,0.14366338]
[1680653124971,0.0777,28148.0,28146.0,0.14354338]
[1680653125418,0.002,28148.0,28146.0,0.14354338]
[1680653126307,0.38739359,28150.0,28146.0,0.14354338]
[1680653126534,0.002,28148.0,28146.0,0.14754338]
[1680653126754,0.0777,28148.0,28146.0,0.14754338]
[1680653126992,0.0777,28148.0,28146.0,0.14766338]
[1680653127673,0.0757,28148.0,28146.0,0.14366338]
[1680653128330,0.0767,28148.0,28146.0,0.14766338]
[1680653129917,0.001,28148.0,28146.0,0.14766338]
[1680653130136,0.001,28148.0,28146.0,0.14754338]
[1680653131526,0.00087814,28148.0,28146.0,0.14754338]
[1680653133593,0.00087814,28148.0,28147.0,0.00011376]